fUST/lending_fUST_20260525
["ID","MTS","AMOUNT","RATE_DAILY","PERIOD"]
[422944186,1779663053000,-500.0,0.00016678,2]
[422944183,1779663053000,-500.0,0.00016678,2]
[422944184,1779663053000,-500.0,0.00016678,2]
[422944194,1779663053000,-500.0,0.00016678,2]
[422944192,1779663053000,-500.0,0.00016678,2]
[422944232,1779663054000,-161.73758927,0.00018917,7]
[422944233,1779663054000,-206.3786362,0.00019,2]
[422944235,1779663065000,-456.6813334,8.219e-05,2]
[422944236,1779663084000,-500.0,8.219e-05,2]
[422944237,1779663389000,207.06303954,0.00014571,60]
[422944238,1779663429000,-152.0,7.548e-05,7]
[422944241,1779663482000,-500.0,8.117e-05,2]
[422944244,1779663536000,-300.0,8.116e-05,2]
[422944245,1779663589000,-300.0,8.116e-05,2]
[422944246,1779663643000,-500.0,8.117e-05,2]
[422944247,1779663734000,170.389193,3.561e-05,2]
[422944257,1779663749000,-170.389193,7.121e-05,2]
[422944258,1779663803000,-300.0,7.212e-05,2]
[422944259,1779663856000,-500.0,8.018e-05,2]
[422944260,1779663909000,-4405.958615,7.146e-05,2]
[422944262,1779664028000,-313.1910409,7.146e-05,2]
[422944263,1779664038000,-299.28042433,7.146e-05,2]
[422944264,1779664040000,-3104.79915467,7.146e-05,2]
[422944266,1779664040000,-721.0434772,7.146e-05,2]
[422944265,1779664040000,-1824.17076873,7.146e-05,2]
[422944267,1779664128000,-1442.5957426,7.146e-05,2]
[422944268,1779664147000,-409.61729654,7.146e-05,2]
[422944269,1779664150000,-588.31493719,7.146e-05,2]
[422944271,1779664166000,-150.0,7.531e-05,2]
[422944272,1779664166000,4.0658,7.819e-05,2]
[422944270,1779664166000,-14.25777774,7.146e-05,2]
[422944273,1779664219000,-94301.43939113,7.819e-05,2]
[422944308,1779664231000,-6392.986062,7.819e-05,2]
[422944305,1779664231000,-6323.65574408,7.819e-05,2]
[422944295,1779664231000,-27799.01520434,7.819e-05,2]
[422944690,1779664243000,-500.0,7.818e-05,2]
[422944692,1779664243000,-500.0,7.818e-05,2]
[422944693,1779664243000,-500.0,7.818e-05,2]
[422944691,1779664243000,-500.0,7.818e-05,2]
[422944710,1779664244000,-500.0,7.818e-05,2]
[422944707,1779664244000,-500.0,7.818e-05,2]
[422944705,1779664244000,-500.0,7.818e-05,2]
[422944709,1779664244000,-500.0,7.818e-05,2]
[422944708,1779664244000,-500.0,7.818e-05,2]
[422944704,1779664244000,-500.0,7.818e-05,2]
[422944706,1779664244000,-500.0,7.818e-05,2]
[422944702,1779664244000,-500.0,7.818e-05,2]
[422944703,1779664244000,-500.0,7.818e-05,2]
[422944699,1779664244000,-323.39508276,7.818e-05,2]
[422944700,1779664244000,-176.60491724,7.818e-05,2]
[422944698,1779664244000,-500.0,7.818e-05,2]
[422944697,1779664244000,-500.0,7.818e-05,2]
[422944696,1779664244000,-238.90414457,7.818e-05,2]
[422944714,1779664244000,-380.37726922,7.818e-05,2]
[422944694,1779664244000,-500.0,7.818e-05,2]
[422944701,1779664244000,-500.0,7.818e-05,2]
[422944715,1779664244000,-188.00268057,7.818e-05,2]
[422944695,1779664244000,-500.0,7.818e-05,2]
[422944711,1779664244000,-500.0,7.818e-05,2]
[422944732,1779664244000,-144.18710759,7.819e-05,2]
[422944731,1779664244000,-413571.68876929,7.819e-05,2]
[422944729,1779664244000,-2117.33197332,7.819e-05,2]
[422944730,1779664244000,-500.0,7.818e-05,2]
[422944728,1779664244000,-1391.275,7.819e-05,2]
[422944727,1779664244000,-500.0,7.818e-05,2]
[422944723,1779664244000,-27426.70612986,7.819e-05,2]
[422944726,1779664244000,-9690.6447665,7.819e-05,2]
[422944724,1779664244000,-26900.21952875,7.819e-05,2]
[422944712,1779664244000,-500.0,7.818e-05,2]
[422944721,1779664244000,-321.22115829,7.819e-05,2]
[422944722,1779664244000,-6874.6232826,7.819e-05,2]
[422944720,1779664244000,-80.11594191,7.819e-05,2]
[422944719,1779664244000,-811914.85766253,7.819e-05,2]
[422944718,1779664244000,-500.0,7.818e-05,2]
[422944716,1779664244000,-500.0,7.818e-05,2]
[422944717,1779664244000,-500.0,7.818e-05,2]
[422944713,1779664244000,-644.3448096,7.818e-05,2]
[422944725,1779664244000,-20711.28406841,7.819e-05,2]
[422944742,1779664246000,-323.50293211,7.818e-05,2]
[422944744,1779664246000,-500.0,7.818e-05,2]
[422944746,1779664246000,-399.52033886,7.819e-05,2]
[422944745,1779664246000,-367.2329012,7.818e-05,2]
[422944743,1779664246000,-176.49706789,7.818e-05,2]
[422944747,1779664247000,-4792.09411657,7.819e-05,2]
[422944748,1779664297000,-124938.95835096,7.819e-05,2]
[422944749,1779664317000,-74332.11659638,7.819e-05,2]
[422944750,1779664336000,-300.0,7.818e-05,2]
[422944752,1779664389000,-4405.958615,7.819e-05,2]
[422944753,1779664410000,-4405.958615,7.819e-05,2]
[422944763,1779664604000,-159.976,7.761e-05,2]
[422944765,1779664657000,-150.0,7.79e-05,2]
[422944766,1779664710000,-4405.958615,7.719e-05,2]
[422944768,1779664730000,-500.0,7.718e-05,2]
[422944771,1779664783000,-500.0,7.718e-05,2]
[422944772,1779664836000,-500.0,7.718e-05,2]
[422944773,1779664890000,-500.0,7.718e-05,2]
[422944777,1779664943000,-4405.958615,7.6e-05,2]
[422944778,1779664967000,-298.66696451,7.599e-05,2]
[422944779,1779665021000,-404.92720107,7.599e-05,2]
[422944781,1779665140000,-342.81511897,7.6e-05,2]
[422944782,1779665243000,-495.32171528,7.599e-05,2]
[422944805,1779665280000,-285.93680206,8e-05,2]
[422944783,1779665280000,-4.67828472,7.599e-05,2]
[422944784,1779665280000,-500.0,7.599e-05,2]
[422944785,1779665280000,-500.0,7.599e-05,2]
[422944787,1779665280000,-500.0,7.599e-05,2]
[422944789,1779665280000,-500.0,7.599e-05,2]
[422944788,1779665280000,-500.0,7.599e-05,2]
[422944790,1779665280000,-500.0,7.599e-05,2]
[422944792,1779665280000,-500.0,7.599e-05,2]
[422944791,1779665280000,-500.0,7.599e-05,2]
[422944794,1779665280000,-26922.12703756,7.6e-05,2]
[422944786,1779665280000,-514.74061404,7.599e-05,2]
[422944795,1779665280000,-5000.0,7.6e-05,2]
[422944793,1779665280000,-450.0,7.599e-05,2]
[422944803,1779665280000,-600.0,7.974e-05,2]
[422944802,1779665280000,-250.0,7.968e-05,2]
[422944800,1779665280000,-319.2,7.802e-05,7]
[422944804,1779665280000,-598.0,8e-05,2]
[422944799,1779665280000,-200.0,7.802e-05,2]
[422944798,1779665280000,-465570.35099694,7.619e-05,2]
[422944797,1779665280000,-1148553.88915566,7.619e-05,2]
[422944796,1779665280000,-150.0,7.609e-05,2]
[422944801,1779665280000,-70923.4214006,7.818e-05,2]
[422944806,1779665362000,91558.17144762,7.519e-05,2]
[422944808,1779665429000,-3010.79869548,8.136e-05,2]
[422944983,1779665440000,-375.31842982,7.518e-05,2]
[422944982,1779665440000,-500.0,7.518e-05,2]
[422944985,1779665440000,-500.0,7.518e-05,2]
[422944984,1779665440000,-500.0,7.518e-05,2]
[422944986,1779665440000,-500.0,7.518e-05,2]
[422944993,1779665440000,-10825.15768538,7.519e-05,2]
[422944988,1779665440000,-500.0,7.518e-05,2]
[422944991,1779665440000,-5571.08638021,7.519e-05,2]
[422944992,1779665440000,-3045.226166,7.519e-05,2]
[422944989,1779665440000,-500.0,7.518e-05,2]
[422944990,1779665440000,-7568.89396006,7.519e-05,2]
[422944987,1779665440000,-500.0,7.518e-05,2]
[422945016,1779665442000,-13824.64239119,7.519e-05,2]
[422945023,1779665442000,-473.57376399,7.519e-05,2]
[422945007,1779665442000,-773722.11243938,7.519e-05,2]
[422945009,1779665442000,-1059.45138188,7.519e-05,2]
[422945145,1779665453000,-5000.0,7.519e-05,2]
[422945146,1779665453000,-253447.12725883,7.519e-05,2]
[422945148,1779665497000,-2535.2004269,7.586e-05,2]
[422945147,1779665497000,-621056.76995808,7.519e-05,2]
[422945149,1779665505000,5000.0,7.519e-05,2]
[422945153,1779665547000,426.40483124,7.518e-05,2]
[422945154,1779665559000,-151.0,8e-05,2]
[422945155,1779665612000,-151.0,8e-05,2]
[422945156,1779665666000,-151.0,8e-05,2]
[422945157,1779665719000,-151.0,8e-05,2]
[422945158,1779665772000,-1763.10572972,8.119e-05,2]
[422945159,1779665792000,-2492.63000487,8.119e-05,2]
[422945160,1779665813000,-1890.48215824,8.119e-05,2]
[422945161,1779666069000,-939.79907109,8.119e-05,2]
[422945162,1779666088000,-500.0,8.119e-05,2]
[422945163,1779666115000,-420.0,8.119e-05,2]
[422945164,1779666135000,-1366.4851097,8.119e-05,2]
[422945165,1779666156000,-1366.4851097,8.119e-05,2]
[422945166,1779666176000,-407.23070951,8.119e-05,2]
[422945167,1779666229000,-5000.0,8.119e-05,2]
[422945168,1779666252000,-3633.5148903,8.119e-05,2]
[422945169,1779666276000,-300.0,8.118e-05,2]
[422945170,1779666281000,159.4968141,3.63e-05,2]
[422945177,1779666330000,-372.88965689,8.118e-05,2]
[422945178,1779666355000,-240.0,8.118e-05,2]
[422945179,1779666355000,-729.89258614,8.118e-05,2]
[422945181,1779666446000,-77.02544887,8.118e-05,2]
[422945180,1779666446000,-308.10741386,8.118e-05,2]
[422945182,1779666516000,-72.97455113,8.118e-05,2]
[422945183,1779666569000,-3633.5148903,8.119e-05,2]
[422945184,1779666590000,-3633.5148903,8.119e-05,2]
[422945185,1779666612000,-1173.52509675,8.119e-05,2]
[422945186,1779666632000,-2321.08946489,8.119e-05,2]
[422945333,1779666638000,-151.0,8.136e-05,2]
[422945334,1779666638000,-295.8730775,8.136e-05,2]
[422945335,1779666638000,-500.0,8.218e-05,2]
[422945340,1779666638000,-5.16665814,8.218e-05,2]
[422945337,1779666638000,-494.83334186,8.218e-05,2]
[422945352,1779666638000,-500.0,8.218e-05,2]
[422945344,1779666638000,-500.0,8.218e-05,2]
[422945346,1779666638000,-527.08476306,8.218e-05,2]
[422945348,1779666638000,-500.0,8.218e-05,2]
[422945350,1779666638000,-500.0,8.218e-05,2]
[422945342,1779666638000,-500.0,8.218e-05,2]
[422945420,1779666639000,-500.0,8.219e-05,2]
[422945387,1779666639000,-500.0,8.219e-05,2]
[422945391,1779666639000,-346.84154924,8.219e-05,2]
[422945405,1779666639000,-500.0,8.219e-05,2]
[422945407,1779666639000,-500.0,8.219e-05,2]
[422945393,1779666639000,-500.0,8.219e-05,2]
[422945395,1779666639000,-500.0,8.219e-05,2]
[422945401,1779666639000,-500.0,8.219e-05,2]
[422945399,1779666639000,-392.15518838,8.219e-05,2]
[422945403,1779666639000,-500.0,8.219e-05,2]
[422945409,1779666639000,-500.0,8.219e-05,2]
[422945415,1779666639000,-500.0,8.219e-05,2]
[422945411,1779666639000,-500.0,8.219e-05,2]
[422945417,1779666639000,-500.0,8.219e-05,2]
[422945413,1779666639000,-168.34187613,8.219e-05,2]
[422945397,1779666639000,-606.61164051,8.219e-05,2]
[422945385,1779666639000,-500.0,8.219e-05,2]
[422945384,1779666639000,-500.0,8.219e-05,2]
[422945382,1779666639000,-500.0,8.219e-05,2]
[422945354,1779666639000,-5000.0,8.218e-05,2]
[422945356,1779666639000,-563.8261,8.219e-05,2]
[422945358,1779666639000,-586.3634,8.219e-05,2]
[422945360,1779666639000,-77.36039119,8.219e-05,2]
[422945362,1779666639000,-422.63960881,8.219e-05,2]
[422945364,1779666639000,-500.0,8.219e-05,2]
[422945389,1779666639000,-500.0,8.219e-05,2]
[422945366,1779666639000,-500.0,8.219e-05,2]
[422945368,1779666639000,-500.0,8.219e-05,2]
[422945374,1779666639000,-500.0,8.219e-05,2]
[422945376,1779666639000,-500.0,8.219e-05,2]
[422945378,1779666639000,-500.0,8.219e-05,2]
[422945372,1779666639000,-500.0,8.219e-05,2]
[422945380,1779666639000,-500.0,8.219e-05,2]
[422945370,1779666639000,-500.0,8.219e-05,2]
[422945419,1779666639000,-500.0,8.219e-05,2]
[422945457,1779666639000,-500.0,8.219e-05,2]
[422945425,1779666639000,-500.0,8.219e-05,2]
[422945422,1779666639000,-500.0,8.219e-05,2]
[422945470,1779666639000,-500.0,8.219e-05,2]
[422945472,1779666639000,-500.0,8.219e-05,2]
[422945486,1779666639000,-115.45506786,8.219e-05,2]
[422945484,1779666639000,-384.54493214,8.219e-05,2]
[422945474,1779666639000,-500.0,8.219e-05,2]
[422945465,1779666639000,-500.61446561,8.219e-05,2]
[422945476,1779666639000,-500.0,8.219e-05,2]
[422945482,1779666639000,-500.0,8.219e-05,2]
[422945480,1779666639000,-500.0,8.219e-05,2]
[422945488,1779666639000,-500.0,8.219e-05,2]
[422945490,1779666639000,-500.0,8.219e-05,2]
[422945492,1779666639000,-500.0,8.219e-05,2]
[422945494,1779666639000,-384.93377639,8.219e-05,2]
[422945478,1779666639000,-500.0,8.219e-05,2]
[422945463,1779666639000,-500.0,8.219e-05,2]
[422945467,1779666639000,-527.32461009,8.219e-05,2]
[422945453,1779666639000,-500.0,8.219e-05,2]
[422945433,1779666639000,-500.0,8.219e-05,2]
[422945426,1779666639000,-500.0,8.219e-05,2]
[422945428,1779666639000,-500.0,8.219e-05,2]
[422945431,1779666639000,-500.0,8.219e-05,2]
[422945455,1779666639000,-500.0,8.219e-05,2]
[422945445,1779666639000,-500.0,8.219e-05,2]
[422945437,1779666639000,-223.29751892,8.219e-05,2]
[422945435,1779666639000,-500.0,8.219e-05,2]
[422945441,1779666639000,-500.0,8.219e-05,2]
[422945443,1779666639000,-500.0,8.219e-05,2]
[422945449,1779666639000,-500.0,8.219e-05,2]
[422945447,1779666639000,-500.0,8.219e-05,2]
[422945459,1779666639000,-500.0,8.219e-05,2]
[422945461,1779666639000,-507.22184969,8.219e-05,2]
[422945451,1779666639000,-500.0,8.219e-05,2]
[422945439,1779666639000,-500.0,8.219e-05,2]
[422945711,1779666641000,-500.0,8.219e-05,2]
[422945715,1779666641000,-500.0,8.219e-05,2]
[422945707,1779666641000,-115.06622361,8.219e-05,2]
[422945717,1779666641000,-500.0,8.219e-05,2]
[422945713,1779666641000,-500.0,8.219e-05,2]
[422945719,1779666641000,-500.0,8.219e-05,2]
[422945710,1779666641000,-500.0,8.219e-05,2]
[422945721,1779666641000,-500.0,8.219e-05,2]
[422945732,1779666641000,-274.66300747,8.219e-05,2]
[422945730,1779666641000,-500.0,8.219e-05,2]
[422945723,1779666641000,-500.0,8.219e-05,2]
[422945728,1779666641000,-500.0,8.219e-05,2]
[422945724,1779666641000,-500.0,8.219e-05,2]
[422945726,1779666641000,-500.0,8.219e-05,2]
[422946112,1779666644000,-163.79444771,8.219e-05,2]
[422946110,1779666644000,-225.33699253,8.219e-05,2]
[422946111,1779666644000,-500.0,8.219e-05,2]
[422946115,1779666644000,-500.0,8.219e-05,2]
[422946118,1779666644000,-500.0,8.219e-05,2]
[422946113,1779666644000,-500.0,8.219e-05,2]
[422946117,1779666644000,-500.0,8.219e-05,2]
[422946119,1779666644000,-500.0,8.219e-05,2]
[422946120,1779666644000,-500.0,8.219e-05,2]
[422946121,1779666644000,-500.0,8.219e-05,2]
[422946123,1779666644000,-165.77150748,8.219e-05,2]
[422946116,1779666644000,-500.0,8.219e-05,2]
[422946114,1779666644000,-500.0,8.219e-05,2]
[422946589,1779666685000,-3633.5148903,8.218e-05,2]
[422946590,1779666705000,-1366.4851097,8.218e-05,2]
[422946593,1779666759000,-3633.5148903,8.119e-05,2]
[422946594,1779666779000,-3633.5148903,8.119e-05,2]
[422946595,1779666799000,-3633.5148903,8.119e-05,2]
[422946596,1779666928000,160.566907,7.43e-05,2]
[422946597,1779666984000,-26818.33345226,8.119e-05,2]
[422946598,1779667038000,-500.0,8.218e-05,2]
[422946599,1779667091000,-152.0,7.811e-05,7]
[422946601,1779667144000,-500.0,8.218e-05,2]
[422946610,1779667197000,-536.90957667,8.218e-05,2]
[422946611,1779667250000,-150.0,8.219e-05,2]
[422946616,1779667304000,-500.0,8.219e-05,2]
[422946618,1779667357000,-525.91143191,8.104e-05,2]
[422946620,1779667410000,-500.0,8.218e-05,2]
[422946621,1779667464000,-500.0,8.218e-05,2]
[422946622,1779667699000,-500.0,8.218e-05,2]
[422946624,1779667752000,-500.0,8.218e-05,2]
[422946625,1779667806000,-500.0,8.218e-05,2]
[422947182,1779667842000,-614.76,8.219e-05,2]
[422947189,1779667842000,-500.0,8.219e-05,2]
[422947180,1779667842000,-500.0,8.219e-05,2]
[422947176,1779667842000,-500.0,8.219e-05,2]
[422947185,1779667842000,-500.0,8.219e-05,2]
[422947187,1779667842000,-500.0,8.219e-05,2]
[422947178,1779667842000,-500.0,8.219e-05,2]
[422947165,1779667842000,-18832.38121545,8.219e-05,2]
[422947172,1779667842000,-500.0,8.219e-05,2]
[422947170,1779667842000,-500.0,8.219e-05,2]
[422947152,1779667842000,-69.40938155,8.219e-05,2]
[422947150,1779667842000,-150.0,8.219e-05,2]
[422947148,1779667842000,-318.95933415,8.218e-05,2]
[422947191,1779667842000,-500.0,8.219e-05,2]
[422947174,1779667842000,-338.94794487,8.219e-05,2]
[422947203,1779667842000,-758.9339,8.219e-05,2]
[422947167,1779667842000,-500.0,8.219e-05,2]
[422947211,1779667842000,-157.77350415,8.219e-05,2]
[422947193,1779667842000,-500.0,8.219e-05,2]
[422947226,1779667842000,-500.0,8.219e-05,2]
[422947230,1779667842000,-500.0,8.219e-05,2]
[422947224,1779667842000,-500.0,8.219e-05,2]
[422947228,1779667842000,-500.0,8.219e-05,2]
[422947220,1779667842000,-500.0,8.219e-05,2]
[422947218,1779667842000,-500.0,8.219e-05,2]
[422947216,1779667842000,-500.0,8.219e-05,2]
[422947222,1779667842000,-500.0,8.219e-05,2]
[422947209,1779667842000,-631.85828626,8.219e-05,2]
[422947201,1779667842000,-510.93,8.219e-05,2]
[422947199,1779667842000,-500.0,8.219e-05,2]
[422947205,1779667842000,-509.16203218,8.219e-05,2]
[422947197,1779667842000,-500.0,8.219e-05,2]
[422947214,1779667842000,-500.0,8.219e-05,2]
[422947207,1779667842000,-500.0,8.219e-05,2]
[422947195,1779667842000,-500.0,8.219e-05,2]
[422947319,1779667843000,-500.0,8.219e-05,2]
[422947316,1779667843000,-500.0,8.219e-05,2]
[422947308,1779667843000,-500.0,8.219e-05,2]
[422947317,1779667843000,-500.0,8.219e-05,2]
[422947315,1779667843000,-500.0,8.219e-05,2]
[422947314,1779667843000,-500.0,8.219e-05,2]
[422947306,1779667843000,-500.0,8.219e-05,2]
[422947318,1779667843000,-500.0,8.219e-05,2]
[422947304,1779667843000,-500.0,8.219e-05,2]
[422947320,1779667843000,-500.0,8.219e-05,2]
[422947310,1779667843000,-500.0,8.219e-05,2]
[422947312,1779667843000,-500.0,8.219e-05,2]
[422947321,1779667843000,-500.0,8.219e-05,2]
[422947338,1779667843000,-500.0,8.219e-05,2]
[422947332,1779667843000,-500.0,8.219e-05,2]
[422947334,1779667843000,-576.41,8.219e-05,2]
[422947336,1779667843000,-500.0,8.219e-05,2]
[422947329,1779667843000,-500.0,8.219e-05,2]
[422947327,1779667843000,-500.0,8.219e-05,2]
[422947340,1779667843000,-500.0,8.219e-05,2]
[422947343,1779667843000,-500.0,8.219e-05,2]
[422947302,1779667843000,-500.0,8.219e-05,2]
[422947325,1779667843000,-171.39956595,8.219e-05,2]
[422947345,1779667843000,-500.0,8.219e-05,2]
[422947358,1779667843000,-500.0,8.219e-05,2]
[422947349,1779667843000,-500.0,8.219e-05,2]
[422947353,1779667843000,-500.0,8.219e-05,2]
[422947351,1779667843000,-500.0,8.219e-05,2]
[422947323,1779667843000,-500.0,8.219e-05,2]
[422947300,1779667843000,-500.0,8.219e-05,2]
[422947292,1779667843000,-500.0,8.219e-05,2]
[422947284,1779667843000,-500.0,8.219e-05,2]
[422947357,1779667843000,-500.0,8.219e-05,2]
[422947236,1779667843000,-337.41932552,8.219e-05,2]
[422947232,1779667843000,-500.0,8.219e-05,2]
[422947239,1779667843000,-500.0,8.219e-05,2]
[422947241,1779667843000,-500.0,8.219e-05,2]
[422947243,1779667843000,-500.0,8.219e-05,2]
[422947245,1779667843000,-500.0,8.219e-05,2]
[422947249,1779667843000,-500.0,8.219e-05,2]
[422947247,1779667843000,-500.0,8.219e-05,2]
[422947262,1779667843000,-500.0,8.219e-05,2]
[422947264,1779667843000,-500.0,8.219e-05,2]
[422947258,1779667843000,-500.0,8.219e-05,2]
[422947260,1779667843000,-500.0,8.219e-05,2]
[422947252,1779667843000,-500.0,8.219e-05,2]
[422947298,1779667843000,-500.0,8.219e-05,2]
[422947254,1779667843000,-500.0,8.219e-05,2]
[422947266,1779667843000,-500.0,8.219e-05,2]
[422947270,1779667843000,-500.0,8.219e-05,2]
[422947268,1779667843000,-500.0,8.219e-05,2]
[422947272,1779667843000,-500.0,8.219e-05,2]
[422947286,1779667843000,-500.0,8.219e-05,2]
[422947288,1779667843000,-500.0,8.219e-05,2]
[422947290,1779667843000,-500.0,8.219e-05,2]
[422947274,1779667843000,-500.0,8.219e-05,2]
[422947296,1779667843000,-500.0,8.219e-05,2]
[422947278,1779667843000,-500.0,8.219e-05,2]
[422947282,1779667843000,-500.0,8.219e-05,2]
[422947294,1779667843000,-500.0,8.219e-05,2]
[422947276,1779667843000,-500.0,8.219e-05,2]
[422947280,1779667843000,-500.0,8.219e-05,2]
[422947256,1779667843000,-500.0,8.219e-05,2]
[422947355,1779667843000,-500.0,8.219e-05,2]
[422947389,1779667843000,-500.0,8.219e-05,2]
[422947363,1779667843000,-183.24553353,8.219e-05,2]
[422947448,1779667843000,-500.0,8.219e-05,2]
[422947446,1779667843000,-500.0,8.219e-05,2]
[422947439,1779667843000,-500.0,8.219e-05,2]
[422947454,1779667843000,-500.0,8.219e-05,2]
[422947450,1779667843000,-500.0,8.219e-05,2]
[422947452,1779667843000,-500.0,8.219e-05,2]
[422947456,1779667843000,-500.0,8.219e-05,2]
[422947458,1779667843000,-586.33478761,8.219e-05,2]
[422947463,1779667843000,-500.0,8.219e-05,2]
[422947460,1779667843000,-500.0,8.219e-05,2]
[422947462,1779667843000,-500.0,8.219e-05,2]
[422947467,1779667843000,-544.67925472,8.219e-05,2]
[422947465,1779667843000,-500.0,8.219e-05,2]
[422947469,1779667843000,-500.0,8.219e-05,2]
[422947471,1779667843000,-500.0,8.219e-05,2]
[422947477,1779667843000,-500.0,8.219e-05,2]
[422947480,1779667843000,-500.0,8.219e-05,2]
[422947475,1779667843000,-177.26225668,8.219e-05,2]
[422947481,1779667843000,-500.0,8.219e-05,2]
[422947483,1779667843000,-500.0,8.219e-05,2]
[422947473,1779667843000,-500.0,8.219e-05,2]
[422947485,1779667843000,-500.0,8.219e-05,2]
[422947487,1779667843000,-500.0,8.219e-05,2]
[422947489,1779667843000,-500.0,8.219e-05,2]
[422947493,1779667843000,-500.0,8.219e-05,2]
[422947497,1779667843000,-500.0,8.219e-05,2]
[422947491,1779667843000,-500.0,8.219e-05,2]
[422947360,1779667843000,-316.75446647,8.219e-05,2]
[422947495,1779667843000,-500.0,8.219e-05,2]
[422947445,1779667843000,-500.0,8.219e-05,2]
[422947443,1779667843000,-544.89950425,8.219e-05,2]
[422947499,1779667843000,-500.0,8.219e-05,2]
[422947437,1779667843000,-500.0,8.219e-05,2]
[422947441,1779667843000,-500.0,8.219e-05,2]
[422947366,1779667843000,-500.0,8.219e-05,2]
[422947374,1779667843000,-500.0,8.219e-05,2]
[422947377,1779667843000,-472.29724434,8.219e-05,2]
[422947380,1779667843000,-27.70275566,8.219e-05,2]
[422947392,1779667843000,-500.0,8.219e-05,2]
[422947396,1779667843000,-500.0,8.219e-05,2]
[422947383,1779667843000,-500.63874499,8.219e-05,2]
[422947400,1779667843000,-500.0,8.219e-05,2]
[422947386,1779667843000,-538.80465203,8.219e-05,2]
[422947398,1779667843000,-500.0,8.219e-05,2]
[422947404,1779667843000,-500.0,8.219e-05,2]
[422947402,1779667843000,-500.0,8.219e-05,2]
[422947408,1779667843000,-500.0,8.219e-05,2]
[422947370,1779667843000,-500.0,8.219e-05,2]
[422947410,1779667843000,-500.0,8.219e-05,2]
[422947406,1779667843000,-500.0,8.219e-05,2]
[422947432,1779667843000,-606.36759145,8.219e-05,2]
[422947433,1779667843000,-500.0,8.219e-05,2]
[422947430,1779667843000,-500.0,8.219e-05,2]
[422947426,1779667843000,-500.0,8.219e-05,2]
[422947428,1779667843000,-500.0,8.219e-05,2]
[422947435,1779667843000,-500.0,8.219e-05,2]
[422947422,1779667843000,-533.59981144,8.219e-05,2]
[422947418,1779667843000,-500.0,8.219e-05,2]
[422947420,1779667843000,-500.0,8.219e-05,2]
[422947416,1779667843000,-500.0,8.219e-05,2]
[422947414,1779667843000,-500.0,8.219e-05,2]
[422947412,1779667843000,-165.77545504,8.219e-05,2]
[422947424,1779667843000,-500.0,8.219e-05,2]
[422947591,1779667844000,-500.0,8.219e-05,2]
[422947587,1779667844000,-500.0,8.219e-05,2]
[422947576,1779667844000,-500.0,8.219e-05,2]
[422947583,1779667844000,-500.0,8.219e-05,2]
[422947574,1779667844000,-500.0,8.219e-05,2]
[422947589,1779667844000,-500.0,8.219e-05,2]
[422947578,1779667844000,-500.0,8.219e-05,2]
[422947585,1779667844000,-500.0,8.219e-05,2]
[422947572,1779667844000,-500.0,8.219e-05,2]
[422947601,1779667844000,-1000.0,8.219e-05,2]
[422947581,1779667844000,-500.0,8.219e-05,2]
[422947553,1779667844000,-500.0,8.219e-05,2]
[422947612,1779667844000,-500.0,8.219e-05,2]
[422947610,1779667844000,-500.0,8.219e-05,2]
[422947595,1779667844000,-500.0,8.219e-05,2]
[422947605,1779667844000,-500.0,8.219e-05,2]
[422947608,1779667844000,-500.0,8.219e-05,2]
[422947597,1779667844000,-500.0,8.219e-05,2]
[422947603,1779667844000,-228.13382322,8.219e-05,2]
[422947599,1779667844000,-500.0,8.219e-05,2]
[422947614,1779667844000,-500.0,8.219e-05,2]
[422947616,1779667844000,-500.0,8.219e-05,2]
[422947618,1779667844000,-500.0,8.219e-05,2]
[422947620,1779667844000,-500.0,8.219e-05,2]
[422947631,1779667844000,-500.0,8.219e-05,2]
[422947551,1779667844000,-500.0,8.219e-05,2]
[422947593,1779667844000,-500.0,8.219e-05,2]
[422947555,1779667844000,-500.0,8.219e-05,2]
[422947538,1779667844000,-500.0,8.219e-05,2]
[422947557,1779667844000,-500.0,8.219e-05,2]
[422947627,1779667844000,-500.0,8.219e-05,2]
[422947502,1779667844000,-500.0,8.219e-05,2]
[422947504,1779667844000,-500.0,8.219e-05,2]